Workbook

Sheet Handelskalkulation
B2: Handelskalkulation
B8: Die Berechnungen von Kalkulationsfaktor, Kalkulationszuschlag und Handelsspanne beziehen sich auf den Nettoverkaufspreis. Umsatzsteuer und Bruttoverkaufspreis werden ergänzend berechnet.

Sheet V1
B1: Vorwärtskalkulation
D3: % | E3: €
B4: LP | C4: Listenpreis | E4: 285 | H4: LP | I4: Listenpreis | J4: =E4 -> 285
B5: LR | C5: Liefererrabatt | D5: 10 | E5: =E4*D5/100 -> 28.5 | H5: BP | I5: =C10 -> Bezugspreis | J5: =E10 -> 261.37
B6: ZEP | C6: Zieleinkaufspreis | E6: =E4-E5 -> 256.5 | H6: NVP | I6: Nettoverkaufspreis | J6: =E19 -> 517.768288
B7: LSK | C7: Liefererskonto | D7: 2 | E7: =E6*D7/100 -> 5.13 | H7: BRP | I7: Bruttoverkaufspreis | J7: =E21 -> 616.1442628
B8: BEP | C8: Bareinkaufspreis | E8: =E6-E7 -> 251.37 | H8: KF | I8: Kalkulationsfaktor | J8: =E19/E10 -> 1.980978261
B9: BK | C9: Bezugskosten | E9: 10 | H9: KZ | I9: Kalkulationszuschlag | J9: =((E19-E10)*100)/E10 -> 98.09782609
B10: BP | C10: Bezugspreis | E10: =E8+E9 -> 261.37 | H10: HSP | I10: Handelsspanne | J10: =((E19-E10)*100)/E19 -> 49.51989026
B11: HKZ | C11: Handlungskostenzuschlag | D11: 35 | E11: =E10*D11/100 -> 91.4795
B12: SKP | C12: Selbstkostenpreis | E12: =E10+E11 -> 352.8495
B13: G | C13: Gewinn | D13: 8 | E13: =E12*D13/100 -> 28.22796
B14: BVP | C14: Barverkaufspreis | E14: =E12+E13 -> 381.07746
B15: KSK | C15: Kundenskonto | D15: 3 | E15: =E14*D15/(100-D15-D16) -> 12.42643891
B16: VP | C16: Vertreterprovision | D16: 5 | E16: =E14*D16/(100-D15-D16) -> 20.71073152
B17: ZVP | C17: Zielverkaufspreis | E17: =E14+E15+E16 -> 414.2146304
B18: KR | C18: Kundenrabatt | D18: 20 | E18: =E17*D18/(100-D18) -> 103.5536576
B19: NVP | C19: Nettoverkaufspreis | E19: =E17+E18 -> 517.768288
B20: UMSt | C20: Umsatzsteuer | D20: 19 | E20: =E19*D20/100 -> 98.37597473
B21: BRP | C21: Bruttoverkaufspreis | E21: =E19+E20 -> 616.1442628

Sheet V2
B1: Vorwärtskalkulation
D6: % | E6: €
B7: LP | C7: Listenpreis | E7: ='V1'!E4 -> 285
B8: LR | C8: Liefererrabatt | D8: ='V1'!D5 -> 10 | E8: =E7*D8/100 -> 28.5
B9: ZEP | C9: Zieleinkaufspreis | E9: =E7-E8 -> 256.5
B10: LSK | C10: Liefererskonto | D10: ='V1'!D7 -> 2 | E10: =E9*D10/100 -> 5.13
B11: BEP | C11: Bareinkaufspreis | E11: =E9-E10 -> 251.37
B12: BK | C12: Bezugskosten | E12: ='V1'!E9 -> 10
B13: BP | C13: Bezugspreis | E13: =E11+E12 -> 261.37
B14: HKZ | C14: Handlungskostenzuschlag | D14: ='V1'!D11 -> 35 | E14: =E13*D14/100 -> 91.4795
B15: SKP | C15: Selbstkostenpreis | E15: =E13+E14 -> 352.8495
B16: G | C16: Gewinn | D16: ='V1'!D13 -> 8 | E16: =E15*D16/100 -> 28.22796
B17: BVP | C17: Barverkaufspreis | E17: =E15+E16 -> 381.07746
B18: KSK | C18: Kundenskonto | D18: ='V1'!D15 -> 3 | E18: =E17*D18/(100-D18-D19) -> 12.42643891
B19: VP | C19: Vertreterprovision | D19: ='V1'!D16 -> 5 | E19: =E17*D19/(100-D18-D19) -> 20.71073152
B20: ZVP | C20: Zielverkaufspreis | E20: =E17+E18+E19 -> 414.2146304
B21: KR | C21: Kundenrabatt | D21: ='V1'!D18 -> 20 | E21: =E20*D21/(100-D21) -> 103.5536576
B22: NVP | C22: Nettoverkaufspreis | E22: =E20+E21 -> 517.768288
B23: UMSt | C23: Umsatzsteuer | D23: ='V1'!D20 -> 19 | E23: =E22*D23/100 -> 98.37597473
B24: BRP | C24: Bruttoverkaufspreis | E24: =E22+E23 -> 616.1442628
B27: KF | C27: Kalkulationsfaktor | E27: =E22/E13 -> 1.980978261
B28: KZ | C28: Kalkulationszuschlag | E28: =((E22-E13)*100)/E13 -> 98.09782609
B29: HSP | C29: Handelsspanne | E29: =((E22-E13)*100)/E22 -> 49.51989026

Sheet V3
B1: Vorwärtskalkulation
D2: % | E2: €
B3: LP | C3: Listenpreis | E3: ='V1'!E4 -> 285
B4: LR | C4: Liefererrabatt | D4: ='V1'!D5 -> 10 | E4: =E3*D4/100 -> 28.5
B5: ZEP | C5: Zieleinkaufspreis | E5: =E3-E4 -> 256.5
B6: LSK | C6: Liefererskonto | D6: ='V1'!D7 -> 2 | E6: =E5*D6/100 -> 5.13
B7: BEP | C7: Bareinkaufspreis | E7: =E5-E6 -> 251.37
B8: BK | C8: Bezugskosten | E8: ='V1'!E9 -> 10
B9: BP | C9: Bezugspreis | E9: =E7+E8 -> 261.37
B10: HKZ | C10: Handlungskostenzuschlag | D10: ='V1'!D11 -> 35 | E10: =E9*D10/100 -> 91.4795
B11: SKP | C11: Selbstkostenpreis | E11: =E9+E10 -> 352.8495
B12: G | C12: Gewinn | D12: ='V1'!D13 -> 8 | E12: =E11*D12/100 -> 28.22796
B13: BVP | C13: Barverkaufspreis | E13: =E11+E12 -> 381.07746
B14: KSK | C14: Kundenskonto | D14: ='V1'!D15 -> 3 | E14: =E13*D14/(100-D14-D15) -> 12.42643891
B15: VP | C15: Vertreterprovision | D15: ='V1'!D16 -> 5 | E15: =E13*D15/(100-D14-D15) -> 20.71073152
B16: ZVP | C16: Zielverkaufspreis | E16: =E13+E14+E15 -> 414.2146304
B17: KR | C17: Kundenrabatt | D17: ='V1'!D18 -> 20 | E17: =E16*D17/(100-D17) -> 103.5536576
B18: NVP | C18: Nettoverkaufspreis | E18: =E16+E17 -> 517.768288
B19: UMSt | C19: Umsatzsteuer | D19: ='V1'!D20 -> 19 | E19: =E18*D19/100 -> 98.37597473
B20: BRP | C20: Bruttoverkaufspreis | E20: =E18+E19 -> 616.1442628
B22: KF | C22: Kalkulationsfaktor | E22: =E18/E9 -> 1.980978261
B23: KZ | C23: Kalkulationszuschlag | E23: =((E18-E9)*100)/E9 -> 98.09782609
B24: HSP | C24: Handelsspanne | E24: =((E18-E9)*100)/E18 -> 49.51989026

Sheet R1
B1: Rückwärtskalkulation
D3: % | E3: €
B4: LP | C4: Listenpreis | E4: =E6+E5 -> 26.55854828 | H4: NVP | I4: Nettoverkaufspreis | J4: =E19 -> 60
B5: LR | C5: Liefererrabatt | D5: 10 | E5: =(E6*D5)/(100-D5) -> 2.655854828 | H5: BP | I5: =C10 -> Bezugspreis | J5: =E10 -> 27.42463958
B6: ZEP | C6: Zieleinkaufspreis | E6: =E8+E7 -> 23.90269345 | H6: LP | I6: Listenpreis | J6: =E4 -> 26.55854828
B7: LSK | C7: Liefererskonto | D7: 2 | E7: =(E8*D7)/(100-D7) -> 0.478053869 | H7: BRP | I7: Bruttoverkaufspreis | J7: =E21 -> 71.4
B8: BEP | C8: Bareinkaufspreis | E8: =E10-E9 -> 23.42463958 | H8: KF | I8: Kalkulationsfaktor | J8: =E19/E10 -> 2.18781362
B9: BK | C9: Bezugskosten | E9: 4 | H9: KZ | I9: Kalkulationszuschlag | J9: =((E19-E10)*100)/E10 -> 118.781362
B10: BP | C10: Bezugspreis | E10: =E12-E11 -> 27.42463958 | H10: HSP | I10: Handelsspanne | J10: =((E19-E10)*100)/E19 -> 54.29226737
B11: HKZ | C11: Handlungskostenzuschlag | D11: 40 | E11: =(E12*D11)/(100+D11) -> 10.96985583
B12: SKP | C12: Selbstkostenpreis | E12: =E14-E13 -> 38.39449541
B13: G | C13: Gewinn | D13: 9 | E13: =(E14*D13)/(D13+100) -> 3.455504587
B14: BVP | C14: Barverkaufspreis | E14: =E17-E16-E15 -> 41.85
B15: KSK | C15: Kundenskonto | D15: 2 | E15: =E17*D15/100 -> 0.9
B16: VP | C16: Vertreterprovision | D16: 5 | E16: =E17*D16/100 -> 2.25
B17: ZVP | C17: Zielverkaufspreis | E17: =E19-E18 -> 45
B18: KR | C18: Kundenrabatt | D18: 25 | E18: =E19*D18/100 -> 15
B19: NVP | C19: Nettoverkaufspreis | E19: 60
B20: UMSt | C20: Umsatzsteuer | D20: 19 | E20: =E19*D20/100 -> 11.4
B21: BRP | C21: Bruttoverkaufspreis | E21: =E19+E20 -> 71.4

Sheet R2
B1: Rückwärtskalkulation
D6: % | E6: €
B7: LP | C7: Listenpreis | E7: =E9+E8 -> 26.55854828
B8: LR | C8: Liefererrabatt | D8: ='R1'!D5 -> 10 | E8: =(E9*D8)/(100-D8) -> 2.655854828
B9: ZEP | C9: Zieleinkaufspreis | E9: =E11+E10 -> 23.90269345
B10: LSK | C10: Liefererskonto | D10: ='R1'!D7 -> 2 | E10: =(E11*D10)/(100-D10) -> 0.478053869
B11: BEP | C11: Bareinkaufspreis | E11: =E13-E12 -> 23.42463958
B12: BK | C12: Bezugskosten | E12: ='R1'!E9 -> 4
B13: BP | C13: Bezugspreis | E13: =E15-E14 -> 27.42463958
B14: HKZ | C14: Handlungskostenzuschlag | D14: ='R1'!D11 -> 40 | E14: =(E15*D14)/(D14+100) -> 10.96985583
B15: SKP | C15: Selbstkostenpreis | E15: =E17-E16 -> 38.39449541
B16: G | C16: Gewinn | D16: ='R1'!D13 -> 9 | E16: =(E17*D16)/(D16+100) -> 3.455504587
B17: BVP | C17: Barverkaufspreis | E17: =E20-E19-E18 -> 41.85
B18: KSK | C18: Kundenskonto | D18: ='R1'!D15 -> 2 | E18: =E20*D18/100 -> 0.9
B19: VP | C19: Vertreterprovision | D19: ='R1'!D16 -> 5 | E19: =E20*D19/100 -> 2.25
B20: ZVP | C20: Zielverkaufspreis | E20: =E22-E21 -> 45
B21: KR | C21: Kundenrabatt | D21: ='R1'!D18 -> 25 | E21: =E22*D21/100 -> 15
B22: NVP | C22: Nettoverkaufspreis | E22: ='R1'!E19 -> 60
B23: UMSt | C23: Umsatzsteuer | D23: ='R1'!D20 -> 19 | E23: =E22*D23/100 -> 11.4
B24: BRP | C24: Bruttoverkaufspreis | E24: =E22+E23 -> 71.4
B26: KF | C26: Kalkulationsfaktor | E26: =E22/E13 -> 2.18781362
B27: KZ | C27: Kalkulationszuschlag | E27: =((E22-E13)*100)/E13 -> 118.781362
B28: HSP | C28: Handelsspanne | E28: =((E22-E13)*100)/E22 -> 54.29226737

Sheet R3
C1: Rückwärtskalkulation
D2: % | E2: €
B3: LP | C3: Listenpreis | E3: =E5+E4 -> 26.55854828
B4: LR | C4: Liefererrabatt | D4: ='R1'!D5 -> 10 | E4: =(E5*D4)/(100-D4) -> 2.655854828
B5: ZEP | C5: Zieleinkaufspreis | E5: =E7+E6 -> 23.90269345
B6: LSK | C6: Liefererskonto | D6: ='R1'!D7 -> 2 | E6: =(E7*D6)/(100-D6) -> 0.478053869
B7: BEP | C7: Bareinkaufspreis | E7: =E9-E8 -> 23.42463958
B8: BK | C8: Bezugskosten | E8: ='R1'!E9 -> 4
B9: BP | C9: Bezugspreis | E9: =E11-E10 -> 27.42463958
B10: HKZ | C10: Handlungskostenzuschlag | D10: ='R1'!D11 -> 40 | E10: =(E11*D10)/(D10+100) -> 10.96985583
B11: SKP | C11: Selbstkostenpreis | E11: =E13-E12 -> 38.39449541
B12: G | C12: Gewinn | D12: ='R1'!D13 -> 9 | E12: =(E13*D12)/(D12+100) -> 3.455504587
B13: BVP | C13: Barverkaufspreis | E13: =E16-E15-E14 -> 41.85
B14: KSK | C14: Kundenskonto | D14: ='R1'!D15 -> 2 | E14: =E16*D14/100 -> 0.9
B15: VP | C15: Vertreterprovision | D15: ='R1'!D16 -> 5 | E15: =E16*D15/100 -> 2.25
B16: ZVP | C16: Zielverkaufspreis | E16: =E18-E17 -> 45
B17: KR | C17: Kundenrabatt | D17: ='R1'!D18 -> 25 | E17: =E18*D17/100 -> 15
B18: NVP | C18: Nettoverkaufspreis | E18: ='R1'!E19 -> 60
B19: UMSt | C19: Umsatzsteuer | D19: ='R1'!D20 -> 19 | E19: =E18*D19/100 -> 11.4
B20: BRP | C20: Bruttoverkaufspreis | E20: =E18+E19 -> 71.4
B22: KF | C22: Kalkulationsfaktor | E22: =E18/E9 -> 2.18781362
B23: KZ | C23: Kalkulationszuschlag | E23: =((E18-E9)*100)/E9 -> 118.781362
B24: HSP | C24: Handelsspanne | E24: =((E18-E9)*100)/E18 -> 54.29226737

Sheet D1
B1: Differenzkalkulation
D3: % | E3: €
B4: LP | C4: Listenpreis | E4: 90 | H4: NVP | I4: Nettoverkaufspreis | J4: =E19 -> 90
B5: LR | C5: Liefererrabatt | D5: 40 | E5: =E4*D5/100 -> 36 | H5: LP | I5: Listenpreis | J5: =E4 -> 90
B6: ZEP | C6: Zieleinkaufspreis | E6: =E4-E5 -> 54 | H6: G | I6: Gewinn | J6: =E13 -> 4.0575
B7: LSK | C7: Liefererskonto | D7: 2 | E7: =E6*D7/100 -> 1.08 | H7: G% | I7: Gewinn in % | J7: =D13 -> 6.048071548
B8: BEP | C8: Bareinkaufspreis | E8: =E6-E7 -> 52.92 | H8: KF | I8: Kalkulationsfaktor | J8: =E19/E10 -> 1.676914477
B9: BK | C9: Bezugskosten | E9: 0.75 | H9: KZ | I9: Kalkulationszuschlag | J9: =((E19-E10)*100)/E10 -> 67.69144774
B10: BP | C10: Bezugspreis | E10: =E8+E9 -> 53.67 | H10: HSP | I10: Handelsspanne | J10: =((E19-E10)*100)/E19 -> 40.36666667
B11: HKZ | C11: Handlungskostenzuschlag | D11: 25 | E11: =E10*D11/100 -> 13.4175
B12: SKP | C12: Selbstkostenpreis | E12: =E10+E11 -> 67.0875
B13: G | C13: Gewinn | D13: =E13*100/E12 -> 6.048071548 | E13: =E14-E12 -> 4.0575
B14: BVP | C14: Barverkaufspreis | E14: =E17-E16-E15 -> 71.145
B15: KSK | C15: Kundenskonto | D15: 3 | E15: =E17*D15/100 -> 2.295
B16: VP | C16: Vertreterprovision | D16: 4 | E16: =E17*D16/100 -> 3.06
B17: ZVP | C17: Zielverkaufspreis | E17: =E19-E18 -> 76.5
B18: KR | C18: Kundenrabatt | D18: 15 | E18: =E19*D18/100 -> 13.5
B19: NVP | C19: Nettoverkaufspreis | E19: 90
B20: UMSt | C20: Umsatzsteuer | D20: 19 | E20: =E19*D20/100 -> 17.1
B21: BRP | C21: Bruttoverkaufspreis | E21: =E19+E20 -> 107.1

Sheet D2
B1: Differenzkalkulation
D6: % | E6: €
B7: LP | C7: Listenpreis | E7: ='D1'!E4 -> 90
B8: LR | C8: Liefererrabatt | D8: ='D1'!D5 -> 40 | E8: =E7*D8/100 -> 36
B9: ZEP | C9: Zieleinkaufspreis | E9: =E7-E8 -> 54
B10: LSK | C10: Liefererskonto | D10: ='D1'!D7 -> 2 | E10: =E9*D10/100 -> 1.08
B11: BEP | C11: Bareinkaufspreis | E11: =E9-E10 -> 52.92
B12: BK | C12: Bezugskosten | E12: ='D1'!E9 -> 0.75
B13: BP | C13: Bezugspreis | E13: =E11+E12 -> 53.67
B14: HKZ | C14: Handlungskostenzuschlag | D14: ='D1'!D11 -> 25 | E14: =E13*D14/100 -> 13.4175
B15: SKP | C15: Selbstkostenpreis | E15: =E13+E14 -> 67.0875
B16: G | C16: Gewinn | D16: =E16*100/E15 -> 6.048071548 | E16: =E17-E15 -> 4.0575
B17: BVP | C17: Barverkaufspreis | E17: =E20-E19-E18 -> 71.145
B18: KSK | C18: Kundenskonto | D18: ='D1'!D15 -> 3 | E18: =E20*D18/100 -> 2.295
B19: VP | C19: Vertreterprovision | D19: ='D1'!D16 -> 4 | E19: =E20*D19/100 -> 3.06
B20: ZVP | C20: Zielverkaufspreis | E20: =E22-E21 -> 76.5
B21: KR | C21: Kundenrabatt | D21: ='D1'!D18 -> 15 | E21: =E22*D21/100 -> 13.5
B22: NVP | C22: Nettoverkaufspreis | E22: ='D1'!E19 -> 90
B23: UMSt | C23: Umsatzsteuer | D23: ='D1'!D20 -> 19 | E23: =E22*D23/100 -> 17.1
B24: BRP | C24: Bruttoverkaufspreis | E24: =E22+E23 -> 107.1
B26: KF | C26: Kalkulationsfaktor | E26: =E22/E13 -> 1.676914477
B27: KZ | C27: Kalkulationszuschlag | E27: =((E22-E13)*100)/E13 -> 67.69144774
B28: HSP | C28: Handelsspanne | E28: =((E22-E13)*100)/E22 -> 40.36666667

Sheet D3
B1: Differenzkalkulation
D2: % | E2: €
B3: LP | C3: Listenpreis | E3: ='D1'!E4 -> 90
B4: LR | C4: Liefererrabatt | D4: ='D1'!D5 -> 40 | E4: =E3*D4/100 -> 36
B5: ZEP | C5: Zieleinkaufspreis | E5: =E3-E4 -> 54
B6: LSK | C6: Liefererskonto | D6: ='D1'!D7 -> 2 | E6: =E5*D6/100 -> 1.08
B7: BEP | C7: Bareinkaufspreis | E7: =E5-E6 -> 52.92
B8: BK | C8: Bezugskosten | E8: ='D1'!E9 -> 0.75
B9: BP | C9: Bezugspreis | E9: =E7+E8 -> 53.67
B10: HKZ | C10: Handlungskostenzuschlag | D10: ='D1'!D11 -> 25 | E10: =E9*D10/100 -> 13.4175
B11: SKP | C11: Selbstkostenpreis | E11: =E9+E10 -> 67.0875
B12: G | C12: Gewinn | D12: =E12*100/E11 -> 6.048071548 | E12: =E13-E11 -> 4.0575
B13: BVP | C13: Barverkaufspreis | E13: =E16-E15-E14 -> 71.145
B14: KSK | C14: Kundenskonto | D14: ='D1'!D15 -> 3 | E14: =E16*D14/100 -> 2.295
B15: VP | C15: Vertreterprovision | D15: ='D1'!D16 -> 4 | E15: =E16*D15/100 -> 3.06
B16: ZVP | C16: Zielverkaufspreis | E16: =E18-E17 -> 76.5
B17: KR | C17: Kundenrabatt | D17: ='D1'!D18 -> 15 | E17: =E18*D17/100 -> 13.5
B18: NVP | C18: Nettoverkaufspreis | E18: ='D1'!E19 -> 90
B19: UMSt | C19: Umsatzsteuer | D19: ='D1'!D20 -> 19 | E19: 800
B20: BRP | C20: Bruttoverkaufspreis | E20: =E18+E19 -> 890
B22: KF | C22: Kalkulationsfaktor | E22: =E18/E9 -> 1.676914477
B23: KZ | C23: Kalkulationszuschlag | E23: =((E18-E9)*100)/E9 -> 67.69144774
B24: HSP | C24: Handelsspanne | E24: =((E18-E9)*100)/E18 -> 40.36666667

Sheet A1
B1: Angebotsvergleich
B3: günstigstes Angebot | D3: Angebot 1 | F3: Angebot 2 | H3: Angebot 3
B4: € | C4: =MIN(E11,G11,I11) -> 1254.4 | D4: % | E4: € | F4: % | G4: € | H4: % | I4: €
B5: LP | C5: Listenpreis | E5: 1750 | G5: 1350 | I5: 1600
B6: LR | C6: Liefererrabatt | D6: 24 | E6: =E5*D6/100 -> 420 | F6: 0 | G6: =G5*F6/100 -> 0 | H6: 20 | I6: =I5*H6/100 -> 320
B7: ZEP | C7: Zieleinkaufspreis | E7: =E5-E6 -> 1330 | G7: =G5-G6 -> 1350 | I7: =I5-I6 -> 1280
B8: LSK | C8: Liefererskonto | D8: 3 | E8: =E7*D8/100 -> 39.9 | F8: 0 | G8: =G7*F8/100 -> 0 | H8: 2 | I8: =I7*H8/100 -> 25.6
B9: BEP | C9: Bareinkaufspreis | E9: =E7-E8 -> 1290.1 | G9: =G7-G8 -> 1350 | I9: =I7-I8 -> 1254.4
B10: BK | C10: Bezugskosten | E10: 22.5 | G10: 0 | I10: 0
B11: BP | C11: Bezugspreis | E11: =E9+E10 -> 1312.6 | G11: =G9+G10 -> 1350 | I11: =I9+I10 -> 1254.4
E14: Angebot 1 | G14: Angebot 2 | I14: Angebot 3
B15: LP | C15: Listenpreis | E15: =E5 -> 1750 | G15: =G5 -> 1350 | I15: =I5 -> 1600
B16: BP | C16: Bezugspreis | E16: =E11 -> 1312.6 | G16: =G11 -> 1350 | I16: =I11 -> 1254.4

Sheet A2
B2: Angebotsvergleich
B4: günstigstes Angebot | D4: Angebot 1 | F4: Angebot 2 | H4: Angebot 3
B5: € | C5: ='A1'!C4 -> 1254.4 | D5: % | E5: € | F5: % | G5: € | H5: % | I5: €
B6: LP | C6: Listenpreis | E6: ='A1'!E5 -> 1750 | G6: ='A1'!G5 -> 1350 | I6: ='A1'!I5 -> 1600
B7: LR | C7: Liefererrabatt | D7: ='A1'!D6 -> 24 | E7: =E6*D7/100 -> 420 | F7: ='A1'!F6 -> 0 | G7: =G6*F7/100 -> 0 | H7: ='A1'!H6 -> 20 | I7: =I6*H7/100 -> 320
B8: ZEP | C8: Zieleinkaufspreis | E8: =E6-E7 -> 1330 | G8: =G6-G7 -> 1350 | I8: =I6-I7 -> 1280
B9: LSK | C9: Liefererskonto | D9: ='A1'!D8 -> 3 | E9: =E8*D9/100 -> 39.9 | F9: ='A1'!F8 -> 0 | G9: =G8*F9/100 -> 0 | H9: ='A1'!H8 -> 2 | I9: =I8*H9/100 -> 25.6
B10: BEP | C10: Bareinkaufspreis | E10: =E8-E9 -> 1290.1 | G10: =G8-G9 -> 1350 | I10: =I8-I9 -> 1254.4
B11: BK | C11: Bezugskosten | E11: ='A1'!E10 -> 22.5 | G11: ='A1'!G10 -> 0 | I11: ='A1'!I10 -> 0
B12: BP | C12: Bezugspreis | E12: =E10+E11 -> 1312.6 | G12: =G10+G11 -> 1350 | I12: =I10+I11 -> 1254.4

Sheet A3
B1: Angebotsvergleich
D2: Angebot 1 | F2: Angebot 2 | H2: Angebot 3
D3: % | E3: € | F3: % | G3: € | H3: % | I3: €
B4: LP | C4: Listenpreis | E4: ='A1'!E5 -> 1750 | G4: ='A1'!G5 -> 1350 | I4: ='A1'!I5 -> 1600
B5: LR | C5: Liefererrabatt | D5: ='A1'!D6 -> 24 | E5: =E4*D5/100 -> 420 | F5: ='A1'!F6 -> 0 | G5: =G4*F5/100 -> 0 | H5: ='A1'!H6 -> 20 | I5: =I4*H5/100 -> 320
B6: ZEP | C6: Zieleinkaufspreis | E6: =E4-E5 -> 1330 | G6: =G4-G5 -> 1350 | I6: =I4-I5 -> 1280
B7: LSK | C7: Liefererskonto | D7: ='A1'!D8 -> 3 | E7: =E6*D7/100 -> 39.9 | F7: ='A1'!F8 -> 0 | G7: =G6*F7/100 -> 0 | H7: ='A1'!H8 -> 2 | I7: =I6*H7/100 -> 25.6
B8: BEP | C8: Bareinkaufspreis | E8: =E6-E7 -> 1290.1 | G8: =G6-G7 -> 1350 | I8: =I6-I7 -> 1254.4
B9: BK | C9: Bezugskosten | E9: ='A1'!E10 -> 22.5 | G9: ='A1'!G10 -> 0 | I9: ='A1'!I10 -> 0
B10: BP | C10: Bezugspreis | E10: =E8+E9 -> 1312.6 | G10: =G8+G9 -> 1350 | I10: =I8+I9 -> 1254.4
